Cogmind - Beta 15 @@@ ROGUE MODE // 2025.07.07 @ 15:19:38 Player: Skysub Result: Destroyed by S-10 Pest with Light Assault Rifle Performance ------------- Evolutions (0) 0 Regions Visited (2) 400 Robots Destroyed (46) 230 Value Destroyed (1133) 1133 Prototype IDs (0) 0 Alien Tech Used (0) 0 Bonus (-121) -121 TOTAL SCORE: 1642 Bonus ------- Friendly Fire -121 Cogmind --------- Core Integrity 0/250 Matter 295/300 Energy 100/100 System Corruption 0% Temperature Cool (0) Movement Walking (120) Location -10/Subcaves Parts ------- > --- POWER (1) -------- (None) > --- PROPULSION (2) --- Myomer Leg Subdweller Monowheel > --- UTILITY (2) ------ Large Storage Unit Structural Scanner > --- WEAPON (2) ------- Grenade Launcher > --- INVENTORY (15) --- Subdweller Power Source Subdweller Power Source Wheel Subdweller Monowheel Small Storage Unit Humpback Structural Scanner Subdweller Optics Scrap Shield Assault Rifle Assault Rifle Subdweller Machine Gun Bore Cannon Peak State ------------ > --- POWER ------------ (None) > --- PROPULSION ------- Myomer Leg Subdweller Monowheel > --- UTILITY ---------- Large Storage Unit Structural Scanner > --- WEAPON ----------- Assault Rifle Grenade Launcher > --- INVENTORY -------- Subdweller Power Source Subdweller Power Source Wheel Subdweller Monowheel Small Storage Unit Humpback Structural Scanner Subdweller Optics Scrap Shield Assault Rifle Subdweller Machine Gun Bore Cannon Mining Laser [Rating: 15] Favorites ----------- Power Ion Engine Engine Ion Engine Propulsion Wheel Treads Light Treads Leg Aluminum Leg Wheel Wheel Utility Large Storage Unit Device Structural Scanner Storage Large Storage Unit Protection Light Armor Plating Weapon Assault Rifle Energy Gun Particle Gun Ballistic Gun Assault Rifle Launcher Grenade Launcher Special Weapon Mining Laser Build | -11 -10 -10 ------- Run | Yrd Mat Sub Slots Evolved . | . . . Power . | . . . Propulsion . | . . . Utility . | . . . Weapon . | . . . Parts Attached 24 | 6 11 7 Power 2 | 1 1 . Engine 2 | 1 1 . Core . | . . . Reactor . | . . . Propulsion 7 | 2 2 3 Treads 3 | 2 . 1 Leg 2 | . 1 1 Wheel 2 | . 1 1 Hover . | . . . Flight . | . . . Utility 6 | 1 4 1 Device 2 | . 1 1 Storage 2 | 1 1 . Processor . | . . . Hackware . | . . . Protection 2 | . 2 . Artifact . | . . . Weapon 9 | 2 4 3 Energy Gun 2 | . 2 . Energy Cannon . | . . . Ballistic Gun 4 | 2 2 . Ballistic Cannon . | . . . Launcher 2 | . . 2 Special Weapon 1 | . . 1 Impact Weapon . | . . . Slashing Weapon . | . . . Piercing Weapon . | . . . Special Melee Weapon . | . . . Unidentified Prototypes . | . . . Parts Lost 12 | . 7 5 Power 2 | . 1 1 Propulsion 4 | . 2 2 Utility 2 | . 2 . Weapon 4 | . 2 2 Highest Loss Streak 4 | . 2 4 To Critical Strikes 1 | . . 1 Average Backups 8 | 1 7 12 Power . | . . 1 Propulsion 1 | . 1 1 Utility 2 | . 2 4 Weapon 3 | . 3 4 Tool/Special . | . . . Unused Backups 12 | . . 12 Power 2 | . . 2 Propulsion 2 | . . 2 Utility 5 | . . 5 Weapon 3 | . . 3 Tool/Special . | . . . Average Slot Usage (%) 90 | . 92 86 Engine 10 | . 13 4 Treads 6 | . 7 3 Leg 9 | . 8 10 Wheel 11 | . 10 14 Device 5 | . 1 13 Storage 14 | . 14 14 Protection 5 | . 8 . Energy Gun 8 | . 12 . Ballistic Gun 13 | . 15 9 Launcher 3 | . . 11 Special Weapon 1 | . . 4 Peak Build Rating 15 | 6 8 15 Average Rating 8 | 5 7 12 On Entrance 4 | . 6 7 Naked Turns . | . . . Heaviest Build 33 | 11 33 31 Greatest Support 40 | 40 40 25 Greatest Overweight (x) 3 | . 3 3 Average Overweight (x) 1 | . 1 . Largest Inventory Capacity 15 | 8 15 15 Average Capacity 12 | 7 11 15 Most Carried 15 | 3 12 15 Average Carried 9 | 1 7 13 Final Capacity 15 | 8 15 15 Final Carried 15 | 3 12 15 Class Distribution -------------------- 91% | Mutant 8% | Scavenger-Mutant Dominant Class ---------------- Mutant | -10/Materials Mutant | -10/Subcaves Resources | -11 -10 -10 ----------- Run | Yrd Mat Sub Matter Collected 983 | 332 473 178 Remotely . | . . . Salvage Created 1473 | 230 944 299 Parts 100 | 16 64 20 Haulers Intercepted . | . . . Recyclers Shooed 2 | 1 1 . Parts Field Recycled . | . . . Retrieved Matter . | . . . Parts Self-Destructed 4 | . . 4 Prevented . | . . . Kills | -11 -10 -10 ------- Run | Yrd Mat Sub Combat Hostiles Destroyed 30 | . 21 9 Guns 23 | . 21 2 AOE 7 | . . 7 Classes Destroyed 9 | 3 4 2 Worker 4 | 2 2 . Builder 2 | . 2 . Tunneler 4 | 4 . . Recycler 3 | 1 2 . Watcher 2 | . 2 . Swarmer 3 | . 3 . Grunt 18 | . 18 . Subdweller 9 | . . 9 Guerrilla 1 | . . 1 Best Kill Streak 8 | 6 6 8 Combat Bots Only 8 | . 3 8 Max Kills in Single Turn 3 | 1 2 3 Gunslinging . | . . . Exploded 3 | . . 3 Melee . | . . . Uniques/NPCs Destroyed . | . . . Combat | -11 -10 -10 -------- Run | Yrd Mat Sub Hostile Shots Fired 151 | . 122 29 Missed 40 | . 29 11 Hits 111 | . 93 18 Projectile 111 | . 93 18 AOE 1 | . . 1 Critical Strikes 2 | . 1 1 Damage Taken 1522 | . 1071 451 Core 251 | . 155 96 Absorbed by Shields . | . . . Core Remaining (%) 100 | 100 . . Volleys Fired 131 | 18 97 16 Largest 2 | 2 2 2 Hottest 100 | 40 85 100 Shots Fired 238 | 36 184 18 Gun 226 | 36 184 6 Cannon . | . . . Launcher 8 | . . 8 Special 4 | . . 4 Kinetic 170 | 36 128 6 Thermal 60 | . 56 4 Explosive 8 | . . 8 Electromagnetic . | . . . Robot Hit Streak 11 | 5 11 7 Robot Miss Streak 4 | 2 4 1 Penetration Max . | . . . Secondary Targets 1 | . 1 . Max Gunslinging Chain 1 | . 1 . Shots Hit Robots 140 | 21 112 7 Core Hits 82 | 8 53 21 Critical Kills 1 | . 1 . Critical Parts Destroyed . | . . . Critical Strikes 3 | . 3 . Burn 2 | . 2 . Destroy 1 | . 1 . Melee Attacks . | . . . Impact . | . . . Slashing . | . . . Piercing . | . . . Sneak Attacks . | . . . Combat Hostiles . | . . . Follow-up Attacks . | . . . Damage Inflicted 2873 | 221 1504 1148 Guns 1778 | 221 1502 55 Cannons . | . . . Explosions 1093 | . . 1093 Melee . | . . . Ramming 2 | . 2 . Kinetic 1180 | 221 904 55 Thermal 598 | . 598 . Explosive 1093 | . . 1093 Electromagnetic . | . . . Impact . | . . . Slashing . | . . . Piercing . | . . . Highest Corruption . | . . . Average Corruption . | . . . Corruption Purged . | . . . Corruption Blocked . | . . . Overload Shots . | . . . Overflow Damage 19 | . . 19 Projectiles . | . . . Explosions 19 | . . 19 Melee . | . . . Knockbacks . | . . . Impact . | . . . Kinetic . | . . . Secondary . | . . . Self-Inflicted Damage 39 | . 1 38 Shots 2 | . . 2 Rammed 1 | . 1 . Targets Rammed 1 | . 1 . Kicked . | . . . Crushed . | . . . Highest Temperature 402 | . 402 . Average Temperature 112 | . 112 . Received Heat Transfer 639 | . 558 81 Effects 4 | . 4 . Interference 2 | . 2 . Matter Decay 2 | . 2 . Siege Activations . | . . . Martial Activations . | . . . Shielding Activations . | . . . Robots Disrupted . | . . . Combat Hostiles . | . . . Robots Corrupted . | . . . Combat Hostiles . | . . . Parts Fried . | . . . Impact Corruptions . | . . . Robots Melted . | . . . Combat Hostiles . | . . . Parts Melted 1 | . 1 . Heat Transferred 1580 | . 1580 . Parts Sabotaged . | . . . Parts Stolen . | . . . Parts Stripped . | . . . Power Chain Reactions . | . . . Alert | -11 -10 -10 ------- Run | Yrd Mat Sub Maximum Alert Level . | . . . Low Security (%) 100 | 100 100 . Level 1 . | . . . Level 2 . | . . . Level 3 . | . . . Level 4 . | . . . Level 5 . | . . . High Security . | . . . Max Security . | . . . Peak Influence 195 | 10 195 . Initial . | . . . Average 108 | 2 119 . Influence Increases 750 | 35 685 30 Destroy 0b10 Robot/C 420 | . 420 . Destroy 0b10 Robot/NC 75 | 35 40 . Destroy Leader 104 | . 104 . Successful Hack 11 | . 11 . Select Force Hacks 60 | . 60 . Destroy Structure 5 | . 5 . Lose Combat Pursuer 75 | . 45 30 Influence Decreases 730 | 35 603 92 Entered New Map 40 | . . 40 Time Decay 610 | 35 533 42 Lost Part 80 | . 70 10 Squads Dispatched 6 | . 6 . Investigation 3 | . 3 . Extermination . | . . . Reinforcement 3 | . 3 . Assault . | . . . Garrison . | . . . Intercept . | . . . Searches Triggered . | . . . Construction Impeded . | . . . Haulers Reinforced . | . . . Active Scanning Responses . | . . . Cargo Convoy Interrupts . | . . . Stealth | -11 -10 -10 --------- Run | Yrd Mat Sub Distress Signals 3 | . 3 . Communications Jammed . | . . . Distress Signals . | . . . Times Spotted 55 | . 31 24 Peak Tracking Total 7 | . 5 7 Tactical Retreats 3 | . 2 1 Traps | -11 -10 -10 ------- Run | Yrd Mat Sub Traps Triggered 3 | . 2 1 Indirectly . | . . . Trap Hack Attempts . | . . . Triggered . | . . . Disarmed . | . . . Reprogrammed . | . . . Reused . | . . . Traps Extracted . | . . . Installed . | . . . Triggered . | . . . Machines | -11 -10 -10 ---------- Run | Yrd Mat Sub Machines Disabled . | . . . Max in Single Turn . | . . . Machines Repaired . | . . . Machines Dismantled . | . . . Machines Sabotaged . | . . . Overloaded Fab Kills . | . . . Hacking | -11 -10 -10 --------- Run | Yrd Mat Sub Machines Accessed 8 | . 7 1 Terminals 5 | . 5 . Fabricators . | . . . Repair Stations . | . . . Recycling Units 2 | . 2 . Scanalyzers . | . . . Garrison Access . | . . . Total Hacks 26 | . 21 5 Successful 19 | . 14 5 Failed 7 | . 7 . Catastrophic 1 | . 1 . Database Lockouts . | . . . Manual 18 | . 18 . Terminals 15 | . 15 . Fabricators . | . . . Repair Stations . | . . . Recycling Units 6 | . 6 . Scanalyzers . | . . . Garrison Access . | . . . Terminal Hacks 6 | . 1 5 Record 5 | . . 5 Zone Layout 1 | . 1 . Fabricator Hacks . | . . . Repair Station Hacks . | . . . Recycling Unit Hacks 3 | . 3 . Report Inventory 2 | . 2 . Retrieve Components 1 | . 1 . Scanalyzer . | . . . Garrison Access Hacks . | . . . Unauthorized Hacks 10 | . 10 . Terminals 8 | . 8 . Botnet 3 | . 3 . Skim 5 | . 5 . Fabricators . | . . . Repair Stations . | . . . Recycling Units 2 | . 2 . Tunnel 2 | . 2 . Scanalyzers . | . . . Garrison Access . | . . . Data Cores Recovered . | . . . Used . | . . . Hacking Detections 4 | . 4 . Full Trace Events . | . . . Feedback Events . | . . . Feedback Blocked . | . . . Robot Schematics Acquired . | . . . Robots Built . | . . . Authchips . | . . . Time . | . . . Total Robot Build Rating . | . . . Part Schematics Acquired . | . . . Parts Built . | . . . Authchips . | . . . Time . | . . . Total Part Build Rating . | . . . Parts Repaired . | . . . Time . | . . . Parts Recycled . | . . . Recycled Matter . | . . . Retrieved Matter . | . . . Retrieved Components 3 | . 3 . Parts Scanalyzed . | . . . Part Schematics Acquired . | . . . Parts Damaged . | . . . Bothacking | -11 -10 -10 ------------ Run | Yrd Mat Sub Used RIF Installer . | . . . Robots Hacked . | . . . Non-combat . | . . . Combat . | . . . Robot Hacks Applied . | . . . Relay Couplers Released . | . . . Fabnet Peak Effective % . | . . . Robots Rewired . | . . . Allies Hacked . | . . . Hacks Repelled . | . . . Allies | -11 -10 -10 -------- Run | Yrd Mat Sub Total Allies . | . . . Largest Group . | . . . Highest-Rated Group . | . . . Highest-Rated Ally . | . . . Total Orders . | . . . Ally Attacks . | . . . Total Damage . | . . . Kills . | . . . Allies Corrupted . | . . . Allies Melted . | . . . Intel | -11 -10 -10 ------- Run | Yrd Mat Sub Active Infowar (turns) 833 | . 140 693 Structural 833 | . 140 693 Robot Analysis Total . | . . . Derelict Logs Recovered 1 | . . 1 Drone Launches . | . . . Drone Recoveries . | . . . Exploration | -11 -10 -10 ------------- Run | Yrd Mat Sub Turns Passed 2484 | 173 1615 696 Spaces Moved 1287 | 72 822 393 Core 4 | 4 . . Treads 249 | 68 109 72 Legs 317 | . 1 316 Wheels 717 | . 712 5 Hover . | . . . Flight . | . . . Fastest Speed 50 | 50 95 110 Average Speed 131 | 153 118 155 Slowest Speed 240 | 160 190 240 Overloaded Moves . | . . . Propulsion Burnouts . | . . . Robots Hopped . | . . . Potential Cave-ins . | . . . Cave-ins Triggered . | . . . Exploration Rate (%) 43 | 4 99 26 Regions Visited 2 Branch Regions 1 Pre-discovered Areas 3 | . 3 . Known Exits Taken . | . . . Unknown Exits Taken 2 | 1 1 . Scrap Searched 2 | . . 2 Spaces Dug 3 | . . 3 Terrain Destroyed 36 | . . 36 Melee . | . . . Projectile 3 | . . 3 AOE 33 | . . 33 Terrain Rammed . | . . . Walls Destroyed . | . . . Machines Disabled . | . . . Actions | -11 -10 -10 --------- Run | Yrd Mat Sub Total 1832 | 100 1281 451 Wait 358 | . 337 21 Move 1285 | 71 821 393 Hop . | . . . Pick Up 25 | 5 12 8 Fast Attach 10 | 4 5 1 Attach 9 | 2 4 3 Detach . | . . . Swap 7 | . 3 4 Drop 6 | . 1 5 Fire 131 | 18 97 16 Melee . | . . . Ram 1 | . 1 . Kick . | . . . Crush . | . . . Escape Stasis . | . . . Rewire . | . . . Trap . | . . . Miscellaneous . | . . . Route ------- -11/Scrapyard -10/Materials (discovered 6 exits: [*Mat x3] / [*Min x2] / *Sub) -10/Subcaves (discovered 2 exits: [*Mat] / [*Rec]) History --------- Turn | Location | Event 26 | -11/Scrapyard | Discovered new exit (range 16) 174 | -11/Scrapyard | Entered Materials 308 | -10/Materials | Build established: Mutant 579 | -10/Materials | Discovered new exit (range 15) 681 | -10/Materials | Discovered new exit (range 16) 817 | -10/Materials | Discovered new exit (range 16) 900 | -10/Materials | Discovered new exit (range 14) 1227 | -10/Materials | Core integrity fell below 50% 1434 | -10/Materials | Discovered new exit (range 14) 1499 | -10/Materials | Learned location of Mines (-10) 1538 | -10/Materials | Discovered new exit (range 9) 1628 | -10/Materials | Learned location of 1 exit from Recycling 1651 | -10/Materials | Learned Storage emergency access door positions 1671 | -10/Materials | Learned 4 Subcaves zone layouts 1689 | -10/Materials | Learned location of 1 exit from Storage 1719 | -10/Materials | Learned Materials stockpile data 1761 | -10/Materials | Learned location of 1 exit from Recycling 1789 | -10/Materials | Entered Subcaves 1850 | -10/Subcaves | Learned Materials stockpile data 1978 | -10/Subcaves | Ambushed by swarm of Subdwellers 1982 | -10/Subcaves | Ambushed by Subdwellers from Twisted Machinery 1986 | -10/Subcaves | Ambushed by Subdwellers from Twisted Machinery 1989 | -10/Subcaves | Ambushed by Subdweller buried in earth 2020 | -10/Subcaves | Destroyed 8 combat bots 2028 | -10/Subcaves | Lost 4 parts (1p2n1w) 2086 | -10/Subcaves | Visited Clippyterm 2090 | -10/Subcaves | Learned 40 Factory zone layouts 2090 | -10/Subcaves | Learned Factory stockpile data 2148 | -10/Subcaves | Discovered new exit (range 11) 2380 | -10/Subcaves | Core integrity fell below 20% 2479 | -10/Subcaves | Discovered new exit (range 13) 2485 | -10/Subcaves | Destroyed by S-10 Pest with Light Assault Rifle Last Messages --------------- 02153_ MX-JVC(R) suffers critical hit (Burn). 02182_ Searching scrap... 02182_ Found Multitool. 02182_ Found 53 Matter. 02184_ Searching scrap... 02184_ Found Sub. Power Source. 02184_ Found Battle Cannon. 02184_ Found 44 Matter. 02191_ Subatomizers dissect the Sub. Monowheel. 02312_ Acquired 10 matter. 02379_ Triggered Piercing Trap. 02379_ Spikes shoot up from the floor. 02379_ Critical hit (Impale). 02387_ ZN-VN5(g) triggered Piercing Trap. 02387_ Spikes shoot up from the floor. 02387_ ZN-VN5(g) suffers critical hit (Impale). 02479_ EXIT=FOUND 02482_ Mining Laser destroyed. 02482_ Destroyed Mining Laser. 02485_ Subatomizers dissect the Sub. Optics. Map ----- +----------------------------------------------------+ | ## ## ##### ###??????????????????????????????? | | ####### ##??????????????????????????????? | | ######## ###??????????????????????????????? | | ###### # ####??????????????????????????????? | | ##### #####???????????????????????????????? | | # ### ####????????????????????????????????? | | #### #### ????????????????????????? | | ##### ## #### ## ????????????????????????? | | # ## ### ##?##### ### ???????????????????? | | ###### ##?## ### ?????????????????? | | ####### ##?# ??????????????? | | ###### #### ## ? ??????????????? | | ### #### ### ? ??????????????? | | # #### ### ? #??????????????? | | " ## ### #### ? ####????????????? | | # " ###" "#######?# ? ####????????????? | | ### " ### ""##??????## ## ##????????????? | | ?### ""##???????###### ???????????????? | | #### """ "#######??????## ##???????????????? | | ##" """" ########??##### ##????""##???????? | | ##" " " ########## ## ? "##???????? | | ##"###### "" ###### #! ### % "##???????? | | #########" #### *%[ s t""## ??????? | | ###????##"" #### && s s <# ??????? | | #########""" ###g&%& s ""###??????? | | ############### g g &&@ ###### % "##???????? | | ###"########### ###### ??? "##???????? | | "####???##### ### ###?????????"##???????? | | ""###?????#### ##########???????????????????? | | " ##??????#############????????????????????? | | ########???????#####???????????????????????????? | | #########???????????????????????????????????????? | | ###?????????????????????????????????????????????? | | ###?????????????????????????????????????????????? | | ###?????????????????????????????????????????????? | | ##?????????????????????????????????????????????? | | ##?????????????????????????????????????????????? | | ##?????????????????????????????????????????????? | | ##?????????????????????????????????????????????? | | ##?????????????????????????????????????????????? | | ##?????????????????????????????????????????????? | | ####?????????????????????????????????????????????? | | ####?????????????????????????????????????????????? | | ##???????????????????????????????????????????????? | | ?????????????????????????????????????????????????? | | ?????????????????????????????????????????????????? | | ?????????????????????????????????????????????????? | | ?????????????????????????????????????????????????? | | ?????????????????????????????????????????????????? | | ?????????????????????????????????????????????????? | +----------------------------------------------------+ Best States ------------- Heat Dissipation 25 Energy Generation 10 Energy Capacity 250 Matter Stores 300 Matter Capacity 300 Sight Range 16 Terrain Scan Density 10 Armor Coverage 150 Evasion (%) 55 Recoil Reduction 2 Item Schematics ----------------- None Robot Schematics ------------------ None Fabricated ------------ Nothing Repaired ---------- Nothing Alien Tech Used ----------------- None Achievements -------------- None Challenges ------------ None Game ------ Seed MachineMatterMatterbank Manual? 0 Play Time 00:17:01 Cumulative 140.8 hours Start 2025.07.07 @ 15:04:02 End 2025.07.07 @ 15:19:38 Sessions 1 Manual Loads 0 Difficulty Rogue Special Mode None Game No. 152 Rogue 152 Adventurer 0 Explorer 0 Win Type - Total 3 Types 1/0/0/1/0/0/0/0/0/1 Lore% 63 Gallery% 59 Achievement% 52 Wizard Run 0 Options --------- Layout 1 ASCII 0 Keyboard 1 Movement Numpad Keybinds 0 Fullscreen 1 Font 32/SmallcapsGlow Map View 77x35 Zoom Use 0% Tactical HUD 1 Map Filters NONE Filters NONE Steam 1 RUN: e0696c4e-593e-4286-8a85-1314256483c9